Cogmind - Beta 16.1 @@@ ROGUE MODE // 2026.02.20 @ 01:36:33 Player: Megaknight51 Result: Self-destructed Performance ------------- Evolutions (8) 4000 Regions Visited (16) 3200 Robots Destroyed (34) 170 Value Destroyed (975) 975 Prototype IDs (21) 420 Alien Tech Used (2) 400 Bonus (785) 785 TOTAL SCORE: 9950 Bonus ------- Follower Combat Kills 185 Registered with UFD 300 Met Zhirov 300 Cogmind --------- Core Integrity 1128/1450 Matter 163/300 Energy 58/190 System Corruption 0% Temperature Cool (0) Movement Flying (101) Ox1 Location -2/Research Parts ------- > --- POWER (3) -------- Light Quantum Reactor > --- PROPULSION (6) --- Field Propulsion Drive Cooled Q-thruster > --- UTILITY (12) ----- Enhanced Optical Array Advanced Terrain Scanner Advanced Terrain Scan Processor 0b10 Decoder Chip [Scout] Advanced ECM Suite Improved Hacking Suite Advanced System Shield > --- WEAPON (2) ------- (None) > --- INVENTORY (5) ---- Q-thruster Heavy Disruptor Cannon Advanced Remote Datajack Peak State ------------ > --- POWER ------------ Light Quantum Reactor Light Quantum Reactor > --- PROPULSION ------- Nuclear Pulse Array Impulse Thruster Array Impulse Thruster Array > --- UTILITY ---------- Enhanced Optical Array Advanced Sensor Array Advanced Signal Interpreter Advanced Signal Interpreter Advanced Terrain Scanner Advanced Terrain Scan Processor Advanced ECM Suite Improved Hacking Suite Advanced System Shield > --- WEAPON ----------- Heavy Disruptor Cannon > --- INVENTORY -------- Cooled Q-thruster 0b10 Decoder Chip [Scout] Advanced Remote Datajack [Rating: 122] Favorites ----------- Power F-cell Engine Engine F-cell Engine Power Core Micro Fission Core Reactor Antimatter Reactor Propulsion Nuclear Pulse Array Wheel Wheel Hover Unit Gravmag System Flight Unit Nuclear Pulse Array Utility System Shield Device Structural Scanner Storage Large Storage Unit Processor Advanced Signal Interpreter Hackware System Shield Protection Hardened Light Armor Plating Weapon Greatsword Energy Cannon Heavy Disruptor Cannon Ballistic Gun Assault Rifle Launcher Subdweller Shrapnel Launcher Special Weapon Mining Laser Slashing Weapon Greatsword Build | -11 -10 -10 -9 -6 -6 -6 -5 -5 -5 -5 -4 -4 -4 -4 -3 -2 ------- Run | Yrd Mat Sub Scr Fac Low Low Fac Upp Upp Zhi Pro Fac Upp Upp Res Res Slots Evolved 16 | . . . . 8 . . 2 . . . . 2 . . 2 2 Power 2 | . . . . 1 . . . . . . . . . . 1 . Propulsion 4 | . . . . 2 . . . . . . . 2 . . . . Utility 10 | . . . . 5 . . 2 . . . . . . . 1 2 Weapon . | . . . . . . . . . . . . . . . . . Parts Attached 93 | 7 1 10 6 9 3 10 15 1 . 3 . 4 1 1 11 11 Power 18 | 1 . 1 1 1 1 3 3 . . 1 . 1 . . 2 3 Engine 7 | 1 . 1 1 1 1 1 1 . . . . . . . . . Core 5 | . . . . . . 2 2 . . . . . . . 1 . Reactor 6 | . . . . . . . . . . 1 . 1 . . 1 3 Propulsion 30 | 2 . 2 3 3 1 6 5 . . . . . . 1 3 4 Treads . | . . . . . . . . . . . . . . . . . Leg . | . . . . . . . . . . . . . . . . . Wheel 10 | 2 . 2 3 3 . . . . . . . . . . . . Hover 2 | . . . . . . 2 . . . . . . . . . . Flight 18 | . . . . . 1 4 5 . . . . . . 1 3 4 Utility 30 | 2 1 . 1 2 1 . 7 1 . 2 . 3 1 . 6 3 Device 17 | 1 . . . 2 . . 4 . . 1 . 2 1 . 5 1 Storage 2 | 1 1 . . . . . . . . . . . . . . . Processor 6 | . . . . . 1 . 2 . . . . 1 . . . 2 Hackware 4 | . . . . . . . 1 1 . 1 . . . . 1 . Protection 1 | . . . 1 . . . . . . . . . . . . . Artifact . | . . . . . . . . . . . . . . . . . Weapon 15 | 2 . 7 1 3 . 1 . . . . . . . . . 1 Energy Gun . | . . . . . . . . . . . . . . . . . Energy Cannon 1 | . . . . . . . . . . . . . . . . 1 Ballistic Gun 8 | 2 . 3 1 2 . . . . . . . . . . . . Ballistic Cannon . | . . . . . . . . . . . . . . . . . Launcher 4 | . . 3 . 1 . . . . . . . . . . . . Special Weapon 1 | . . 1 . . . . . . . . . . . . . . Impact Weapon . | . . . . . . . . . . . . . . . . . Slashing Weapon 1 | . . . . . . 1 . . . . . . . . . . Piercing Weapon . | . . . . . . . . . . . . . . . . . Special Melee Weapon . | . . . . . . . . . . . . . . . . . Unidentified Prototypes 8 | . . . . . . . 2 . . 3 . . . . 2 1 Parts Lost 41 | . . 7 . 8 2 . 3 . . . . . . 2 10 9 Power 8 | . . 1 . 2 . . . . . . . . . . 3 2 Propulsion 13 | . . 2 . 2 . . 3 . . . . . . . 1 5 Utility 11 | . . 1 . 1 . . . . . . . . . 1 6 2 Weapon 9 | . . 3 . 3 2 . . . . . . . . 1 . . Highest Loss Streak 8 | . . 3 . 8 2 . 3 . . . . . . 2 6 7 To Critical Strikes . | . . . . . . . . . . . . . . . . . Average Backups 7 | 1 7 11 11 13 4 3 4 5 5 5 5 4 4 5 4 3 Power 1 | . 2 3 1 1 . . 2 2 2 1 1 1 1 1 . . Propulsion 1 | . 2 1 . 1 1 . . 2 2 2 2 . . . . 1 Utility 2 | . 2 2 5 6 1 1 . . . . . 1 1 2 1 . Weapon 1 | . 1 4 4 4 1 1 . . . . . . . . . . Tool/Special . | . . . . . . . . . . . . . . . . . Unused Backups 25 | . . 1 9 2 7 . 1 . . 1 . 1 . . 1 2 Power 5 | . . . 3 . . . 1 . . 1 . . . . . . Propulsion 3 | . . . 2 . . . . . . . . . . . . 1 Utility 9 | . . . 1 2 6 . . . . . . . . . . . Weapon 5 | . . 1 3 . 1 . . . . . . . . . . . Tool/Special 3 | . . . . . . . . . . . . 1 . . 1 1 Average Slot Usage (%) 66 | . 100 85 88 37 1 25 53 81 82 82 82 82 84 84 65 51 Engine 5 | . 14 12 14 4 . 3 3 5 5 5 5 5 1 . . . Core 1 | . . . . . . 3 5 5 5 5 5 2 . . . . Reactor 1 | . . . . . . . . . . . . 2 8 10 8 5 Wheel 7 | . 28 24 22 8 . . . . . . . . . . . . Flight 7 | . . . . . . 10 17 11 11 11 11 19 21 21 16 12 Device 9 | . 14 6 . . . . 7 23 23 23 23 15 19 21 17 9 Storage 4 | . 14 14 14 6 . . . . . . . . . . . . Processor 7 | . . . . . . 6 7 17 17 16 11 14 15 15 14 13 Hackware 4 | . . . . . . . 4 10 11 11 17 15 11 10 8 8 Protection 1 | . . . 8 2 . . . . . . . . . . . . Ballistic Gun 6 | . 28 18 14 12 . . . . . . . . . . . . Launcher 2 | . . 4 14 . . . . . . . . . . . . . Slashing Weapon 1 | . . . . . . . 4 5 5 5 5 5 5 5 . . Peak Build Rating 122 | 7 8 11 17 23 15 24 70 73 73 81 77 95 97 97 98 122 Average Rating 42 | 5 7 8 12 15 2 16 51 72 73 74 77 93 96 96 87 93 On Entrance 47 | . 7 8 8 17 12 15 23 70 73 73 77 77 95 97 84 75 Avg Prop Armor Cover (%) 13 | . . . . . . 11 . . . . . . . . . 14 Naked Turns 385 | . . . . . 385 . . . . . . . . . . . Heaviest Build 50 | 12 27 34 43 44 22 17 26 26 26 26 26 36 39 39 37 50 Greatest Support 47 | 20 20 20 24 30 6 18 27 26 26 26 26 40 40 40 42 47 Greatest Overweight (x) 12 | . 1 3 3 12 7 1 . . . . . . . . . 1 Average Overweight (x) . | . . 1 1 1 . . . . . . . . . . . . Largest Inventory Capacity 15 | 8 15 15 15 15 15 5 5 5 5 5 5 5 5 5 5 5 Average Capacity 9 | 7 11 15 15 15 5 5 5 5 5 5 5 5 5 5 5 5 Most Carried 15 | 6 8 15 15 15 15 5 5 5 5 5 5 5 5 5 5 5 Average Carried 8 | 2 7 11 12 14 5 4 4 5 5 4 5 4 4 5 4 4 Final Capacity 15 | 8 15 15 15 15 5 5 5 5 5 5 5 5 5 5 5 5 Final Carried 15 | 6 8 13 15 15 4 5 5 5 5 5 5 5 5 5 2 4 Class Distribution -------------------- 44% | Mutant 34% | Hacker-Scout 8% | Derelict-Mutant 4% | Hacker-Ninja Dominant Class ---------------- Mutant | -10/Materials Mutant | -10/Subcaves Mutant | -9/Scraptown Mutant | -6/Factory Mutant | -6/Lower Caves Mutant | -6/Lower Caves Sprinter | -5/Factory Hacker-Scout | -5/Upper Caves Hacker-Scout | -5/Upper Caves Hacker-Scout | -5/Zhirov Hacker-Scout | -4/Proximity Caves Hacker-Scout | -4/Factory Hacker-Ninja | -4/Upper Caves Hacker-Ninja | -4/Upper Caves Hacker-Scout | -3/Research Hacker-Scout | -2/Research Resources | -11 -10 -10 -9 -6 -6 -6 -5 -5 -5 -5 -4 -4 -4 -4 -3 -2 ----------- Run | Yrd Mat Sub Scr Fac Low Low Fac Upp Upp Zhi Pro Fac Upp Upp Res Res Matter Collected 1858 | 263 34 222 324 37 156 309 122 63 . . 69 . 110 49 . 100 Remotely . | . . . . . . . . . . . . . . . . . Salvage Created 1012 | 152 14 301 . 360 . . 185 . . . . . . . . . Parts 71 | 11 3 25 . 17 . . 15 . . . . . . . . . Haulers Intercepted 1 | . . . . . . . 1 . . . . . . . . . Recyclers Shooed 2 | . . . . 1 . . 1 . . . . . . . . . Parts Field Recycled . | . . . . . . . . . . . . . . . . . Retrieved Matter . | . . . . . . . . . . . . . . . . . Parts Self-Destructed 15 | . . 5 . . . 10 . . . . . . . . . . Prevented . | . . . . . . . . . . . . . . . . . Parts Restored . | . . . . . . . . . . . . . . . . . Kills | -11 -10 -10 -9 -6 -6 -6 -5 -5 -5 -5 -4 -4 -4 -4 -3 -2 ------- Run | Yrd Mat Sub Scr Fac Low Low Fac Upp Upp Zhi Pro Fac Upp Upp Res Res Combat Hostiles Destroyed 18 | . . 9 . 9 . . . . . . . . . . . . Guns 7 | . . 4 . 3 . . . . . . . . . . . . AOE 11 | . . 5 . 6 . . . . . . . . . . . . Classes Destroyed 10 | 2 . 2 . 4 . . 2 . . . . . . . . . Worker 5 | . . . . 4 . . 1 . . . . . . . . . Builder 2 | . . . . . . . 2 . . . . . . . . . Tunneler 7 | 4 1 . . . . . 2 . . . . . . . . . Hauler 1 | . . . . . . . 1 . . . . . . . . . Recycler 1 | 1 . . . . . . . . . . . . . . . . Grunt 7 | . . . . 7 . . . . . . . . . . . . Brawler 1 | . . . . 1 . . . . . . . . . . . . Sentry 1 | . . 1 . . . . . . . . . . . . . . Programmer 1 | . . . . 1 . . . . . . . . . . . . Subdweller 8 | . . 8 . . . . . . . . . . . . . . Best Kill Streak 13 | 5 1 2 . 13 . . 2 . . . . . . . . . Combat Bots Only 8 | . . 2 . 8 . . . . . . . . . . . . Max Kills in Single Turn 4 | 1 1 1 . 4 . . 1 . . . . . . . . . Gunslinging . | . . . . . . . . . . . . . . . . . Exploded 2 | . . 1 . 2 . . . . . . . . . . . . Melee . | . . . . . . . . . . . . . . . . . Uniques/NPCs Destroyed . | . . . . . . . . . . . . . . . . . Combat | -11 -10 -10 -9 -6 -6 -6 -5 -5 -5 -5 -4 -4 -4 -4 -3 -2 -------- Run | Yrd Mat Sub Scr Fac Low Low Fac Upp Upp Zhi Pro Fac Upp Upp Res Res Hostile Shots Fired 423 | . 1 43 . 61 43 23 7 6 2 . . 10 . 6 118 103 Missed 192 | . . 18 . 13 14 10 5 4 2 . . 4 . 2 73 47 Hits 231 | . 1 25 . 48 29 13 2 2 . . . 6 . 4 45 56 Melee 19 | . . . . . 2 . . . . . . . . . 16 1 Projectile 212 | . 1 25 . 48 27 13 2 2 . . . 6 . 4 29 55 AOE 5 | . . 4 . . . . . . . . . . . . 1 . Critical Strikes 11 | . . . . 4 1 . . . . . . 1 . . 5 . Damage Taken 5433 | . 6 865 . 961 554 205 396 32 . . . 175 . 79 999 1161 Core 1666 | . . 202 . 203 385 123 183 18 . . . 19 . . 211 322 Absorbed by Shields 24 | . . . . . . . . . . . . 24 . . . . Core Remaining (%) 65 | 100 . . 19 . . 16 . . . . 79 . . 98 78 . Volleys Fired 86 | 11 6 40 . 26 1 . . . . . . . . . . 2 Largest 2 | 2 2 2 . 2 2 . . . . . . . . . . 1 Hottest 125 | 40 40 125 . 62 50 . . . . . . . . . . 110 Shots Fired 147 | 22 12 60 . 49 2 . . . . . . . . . . 2 Gun 104 | 22 12 25 . 43 2 . . . . . . . . . . . Cannon 2 | . . . . . . . . . . . . . . . . 2 Launcher 22 | . . 16 . 6 . . . . . . . . . . . . Special 19 | . . 19 . . . . . . . . . . . . . . Kinetic 112 | 22 12 33 . 43 2 . . . . . . . . . . . Thermal 19 | . . 19 . . . . . . . . . . . . . . Explosive 14 | . . 8 . 6 . . . . . . . . . . . . Electromagnetic 2 | . . . . . . . . . . . . . . . . 2 Robot Hit Streak 10 | 10 2 8 . 7 2 . . . . . . . . . . . Robot Miss Streak 6 | 1 6 2 . 4 . . . . . . . . . . . . Penetration Max . | . . . . . . . . . . . . . . . . . Secondary Targets 1 | . . . . 1 . . . . . . . . . . . . Max Gunslinging Chain 1 | . . . . 1 . . . . . . . . . . . . Shots Hit Robots 92 | 17 3 25 . 34 2 . 9 . . . . . 2 . . . Core Hits 60 | 8 2 15 . 33 . . 2 . . . . . . . . . Critical Kills 1 | . . . . 1 . . . . . . . . . . . . Critical Parts Destroyed . | . . . . . . . . . . . . . . . . . Critical Strikes 2 | . . . . 1 . . . . . . . . 1 . . . Destroy 1 | . . . . 1 . . . . . . . . . . . . Sever 1 | . . . . . . . . . . . . . 1 . . . Melee Attacks 82 | . . . . . . 1 40 5 9 . . 19 7 1 . . Impact . | . . . . . . . . . . . . . . . . . Slashing 82 | . . . . . . 1 40 5 9 . . 19 7 1 . . Piercing . | . . . . . . . . . . . . . . . . . Sneak Attacks 8 | . . . . . . . 7 . . . . . 1 . . . Combat Hostiles . | . . . . . . . . . . . . . . . . . Follow-up Attacks . | . . . . . . . . . . . . . . . . . Damage Inflicted 3807 | 185 41 871 . 1625 32 . 888 . . . . . 165 . . . Guns 1042 | 185 41 249 . 537 30 . . . . . . . . . . . Cannons . | . . . . . . . . . . . . . . . . . Explosions 1709 | . . 622 . 1087 . . . . . . . . . . . . Melee 1053 | . . . . . . . 888 . . . . . 165 . . . Ramming 3 | . . . . 1 2 . . . . . . . . . . . Kinetic 1222 | 185 41 429 . 537 30 . . . . . . . . . . . Thermal 295 | . . . . 295 . . . . . . . . . . . . Explosive 1234 | . . 442 . 792 . . . . . . . . . . . . Electromagnetic . | . . . . . . . . . . . . . . . . . Impact . | . . . . . . . . . . . . . . . . . Slashing 1053 | . . . . . . . 888 . . . . . 165 . . . Piercing . | . . . . . . . . . . . . . . . . . Highest Corruption 4 | . . . . 3 4 4 3 3 3 3 3 3 3 3 1 . Average Corruption 3 | . . . . 2 3 4 3 3 3 3 3 2 3 3 1 . Corruption Purged . | . . . . . . . . . . . . . . . . . Corruption Blocked . | . . . . . . . . . . . . . . . . . Effects 64 | . . . . 10 9 11 2 6 12 2 4 . 4 3 1 . Message Errors 17 | . . . . 3 4 2 1 3 3 . 1 . . . . . Matter Fused 10 | . . . . 1 2 2 . . 1 1 1 . 2 . . . Heat Flow Errors 13 | . . . . 3 2 3 . 2 1 1 . . . . 1 . Energy Discharges 5 | . . . . 1 1 . . . 2 . . . . 1 . . Parts Fused 1 | . . . . 1 . . . . . . . . . . . . Data Loss (minor) 8 | . . . . . . 3 1 1 2 . . . . 1 . . Data Loss (major) 8 | . . . . 1 . 1 . . 3 . 2 . 1 . . . Alerts 2 | . . . . . . . . . . . . . 1 1 . . Overload Shots . | . . . . . . . . . . . . . . . . . Overflow Damage 551 | . . . . 118 . . 376 . . . . . 57 . . . Projectiles . | . . . . . . . . . . . . . . . . . Explosions 118 | . . . . 118 . . . . . . . . . . . . Melee 433 | . . . . . . . 376 . . . . . 57 . . . Knockbacks . | . . . . . . . . . . . . . . . . . Impact . | . . . . . . . . . . . . . . . . . Kinetic . | . . . . . . . . . . . . . . . . . Secondary . | . . . . . . . . . . . . . . . . . Self-Inflicted Damage 198 | . . 94 . 104 . . . . . . . . . . . . Shots 6 | . . 3 . 3 . . . . . . . . . . . . Rammed 4 | . . . . 2 2 . . . . . . . . . . . Targets Rammed 4 | . . . . 2 2 . . . . . . . . . . . Kicked . | . . . . . . . . . . . . . . . . . Crushed . | . . . . . . . . . . . . . . . . . Highest Temperature 264 | . . . . 258 246 240 . 264 210 218 . . . . 248 48 Average Temperature 92 | . . . . 62 114 95 . 107 115 128 . . . . 126 25 Received Heat Transfer 777 | . . 96 . 315 231 . 9 9 . . . . . 21 87 9 Effects 2 | . . . . 1 . . . 1 . . . . . . . . Energy Bleed 1 | . . . . 1 . . . . . . . . . . . . Interference 1 | . . . . . . . . 1 . . . . . . . . Siege Activations . | . . . . . . . . . . . . . . . . . Martial Activations . | . . . . . . . . . . . . . . . . . Shielding Activations . | . . . . . . . . . . . . . . . . . Robots Disrupted . | . . . . . . . . . . . . . . . . . Combat Hostiles . | . . . . . . . . . . . . . . . . . Robots Corrupted . | . . . . . . . . . . . . . . . . . Combat Hostiles . | . . . . . . . . . . . . . . . . . Parts Fried . | . . . . . . . . . . . . . . . . . Impact Corruptions . | . . . . . . . . . . . . . . . . . Robots Melted . | . . . . . . . . . . . . . . . . . Combat Hostiles . | . . . . . . . . . . . . . . . . . Parts Melted . | . . . . . . . . . . . . . . . . . Heat Transferred 150 | . . . . 150 . . . . . . . . . . . . Parts Sabotaged . | . . . . . . . . . . . . . . . . . Parts Stolen . | . . . . . . . . . . . . . . . . . Parts Stripped . | . . . . . . . . . . . . . . . . . Power Chain Reactions . | . . . . . . . . . . . . . . . . . Alert | -11 -10 -10 -9 -6 -6 -6 -5 -5 -5 -5 -4 -4 -4 -4 -3 -2 ------- Run | Yrd Mat Sub Scr Fac Low Low Fac Upp Upp Zhi Pro Fac Upp Upp Res Res Maximum Alert Level 1 | . . . . 1 . . . . . . . . . . . . Low Security (%) 95 | 100 100 . . 86 . . 100 . . . . 100 . . 100 100 Level 1 4 | . . . . 13 . . . . . . . . . . . . Level 2 . | . . . . . . . . . . . . . . . . . Level 3 . | . . . . . . . . . . . . . . . . . Level 4 . | . . . . . . . . . . . . . . . . . Level 5 . | . . . . . . . . . . . . . . . . . High Security . | . . . . . . . . . . . . . . . . . Max Security . | . . . . . . . . . . . . . . . . . Peak Influence 251 | 15 6 . . 251 . . 86 . . . . 27 . . 21 45 Initial 35 | . . . . . . . 35 . . . . . . . . . Average 35 | 3 . . . 84 . . 38 . . . . 2 . . 1 10 Influence Increases 1624 | 25 11 20 . 418 150 305 267 45 120 . . 96 . . 56 111 Destroy 0b10 Robot/C 360 | . . 20 . 180 . 160 . . . . . . . . . . Destroy 0b10 Robot/NC 80 | 25 5 . . 20 . . 30 . . . . . . . . . Destroy Leader 52 | . . . . 30 . 20 2 . . . . . . . . . Allied During Kill 35 | . . . . . . 35 . . . . . . . . . . Successful Hack 81 | . 6 . . 14 . . 14 . . . . . . . 26 21 Disable Machine 75 | . . . . 45 . . 15 . . . . . . . . 15 Destroy Structure 146 | . . . . 54 . . 56 . . . . 36 . . . . Partial Spotted 150 | . . . . . . . 45 . . . . 30 . . 30 45 Lose Combat Pursuer 645 | . . . . 75 150 90 105 45 120 . . 30 . . . 30 Influence Decreases 1614 | 25 11 20 . 351 217 249 245 123 60 60 . 69 27 . 56 101 Entered New Map 148 | . . . . . 26 . 21 30 . 60 . . 11 . . . Time Decay 1263 | 25 11 20 . 284 171 189 194 93 60 . . 69 16 . 56 75 Lost Part 143 | . . . . 67 20 . 30 . . . . . . . . 26 Lost Ally 60 | . . . . . . 60 . . . . . . . . . . Squads Dispatched 17 | . 1 . . 4 . . . . . . . 1 . . 8 3 Investigation 2 | . . . . . . . . . . . . . . . 1 1 Extermination 7 | . . . . 2 . . . . . . . 1 . . 3 1 Reinforcement 8 | . 1 . . 2 . . . . . . . . . . 4 1 Assault . | . . . . . . . . . . . . . . . . . Garrison . | . . . . . . . . . . . . . . . . . Intercept . | . . . . . . . . . . . . . . . . . Searches Triggered . | . . . . . . . . . . . . . . . . . Construction Impeded . | . . . . . . . . . . . . . . . . . Haulers Reinforced 1 | . . . . 1 . . . . . . . . . . . . Active Scanning Responses . | . . . . . . . . . . . . . . . . . Cargo Convoy Interrupts . | . . . . . . . . . . . . . . . . . Stealth | -11 -10 -10 -9 -6 -6 -6 -5 -5 -5 -5 -4 -4 -4 -4 -3 -2 --------- Run | Yrd Mat Sub Scr Fac Low Low Fac Upp Upp Zhi Pro Fac Upp Upp Res Res Distress Signals 3 | . 1 . . 1 . . . . . . . . . . . 1 Communications Jammed . | . . . . . . . . . . . . . . . . . Distress Signals . | . . . . . . . . . . . . . . . . . Times Spotted 175 | . 5 10 . 19 10 15 9 6 7 . . 8 . 4 47 35 Peak Tracking Total 11 | . 4 2 . 7 10 5 5 4 5 . . 5 . 4 10 11 Tactical Retreats 33 | . . . . 2 2 4 5 1 3 . . 1 . . 9 6 ECM-based Alert Blocks 61 | . . . . . . . . . . . . . . . 33 28 Traps | -11 -10 -10 -9 -6 -6 -6 -5 -5 -5 -5 -4 -4 -4 -4 -3 -2 ------- Run | Yrd Mat Sub Scr Fac Low Low Fac Upp Upp Zhi Pro Fac Upp Upp Res Res Traps Triggered 10 | . . 2 . . . . 1 . . . . 3 . . 3 1 Indirectly . | . . . . . . . . . . . . . . . . . Trap Hack Attempts . | . . . . . . . . . . . . . . . . . Triggered . | . . . . . . . . . . . . . . . . . Disarmed . | . . . . . . . . . . . . . . . . . Reprogrammed . | . . . . . . . . . . . . . . . . . Reused . | . . . . . . . . . . . . . . . . . Traps Extracted . | . . . . . . . . . . . . . . . . . Installed . | . . . . . . . . . . . . . . . . . Triggered . | . . . . . . . . . . . . . . . . . Machines | -11 -10 -10 -9 -6 -6 -6 -5 -5 -5 -5 -4 -4 -4 -4 -3 -2 ---------- Run | Yrd Mat Sub Scr Fac Low Low Fac Upp Upp Zhi Pro Fac Upp Upp Res Res Machines Disabled 7 | . . . . 3 . 1 1 1 . . . . . . . 1 Max in Single Turn 2 | . . . . 2 . 1 1 1 . . . . . . . 1 Garrison Access 1 | . . . . . . . . . . . . 1 . . . . Machines Repaired . | . . . . . . . . . . . . . . . . . Machines Dismantled . | . . . . . . . . . . . . . . . . . Machines Sabotaged . | . . . . . . . . . . . . . . . . . Overloaded Fab Kills . | . . . . . . . . . . . . . . . . . Hacking | -11 -10 -10 -9 -6 -6 -6 -5 -5 -5 -5 -4 -4 -4 -4 -3 -2 --------- Run | Yrd Mat Sub Scr Fac Low Low Fac Upp Upp Zhi Pro Fac Upp Upp Res Res Machines Accessed 28 | . 1 1 2 3 . . 5 1 . 5 . 2 . 1 5 2 Terminals 11 | . 1 . . 2 . . 2 1 . . . 1 . . 2 2 Fabricators 4 | . . . . 1 . . 2 . . . . . . . 1 . Repair Stations . | . . . . . . . . . . . . . . . . . Recycling Units . | . . . . . . . . . . . . . . . . . Scanalyzers 2 | . . . . . . . 1 . . . . . . . 1 . Garrison Access 2 | . . . . . . . . . . . . 1 . . 1 . Total Hacks 66 | . 3 3 5 3 . . 10 1 . 18 . 4 . 1 13 5 Successful 44 | . 2 3 5 2 . . 6 1 . 18 . 1 . 1 4 1 Failed 21 | . 1 . . 1 . . 3 . . . . 3 . . 9 4 Catastrophic 7 | . . . . 1 . . 1 . . . . . . . 4 1 Database Lockouts 1 | . . . . . . . 1 . . . . . . . . . Manual 25 | . 3 . . 2 . . 3 1 . . . 3 . . 8 5 Terminals 25 | . 3 . . 2 . . 3 1 . . . 3 . . 8 5 Fabricators 6 | . . . . 1 . . 4 . . . . . . . 1 . Repair Stations . | . . . . . . . . . . . . . . . . . Recycling Units . | . . . . . . . . . . . . . . . . . Scanalyzers 6 | . . . . . . . 3 . . . . . . . 3 . Garrison Access 2 | . . . . . . . . . . . . 1 . . 1 . Terminal Hacks 30 | . 2 3 5 . . . . 1 . 18 . . . 1 . . Record 14 | . . 3 4 . . . . 1 . 6 . . . . . . Part Schematic 4 | . . . . . . . . . . 4 . . . . . . Robot Analysis 6 | . 2 . . . . . . . . 4 . . . . . . Prototype ID Bank 4 | . . . . . . . . . . 4 . . . . . . Open Door 1 | . . . . . . . . . . . . . . 1 . . Proto ID Catalog 1 | . . . 1 . . . . . . . . . . . . . Fabricator Hacks 5 | . . . . 1 . . 3 . . . . . . . 1 . Network Status 4 | . . . . 1 . . 2 . . . . . . . 1 . Build 1 | . . . . . . . 1 . . . . . . . . . Repair Station Hacks . | . . . . . . . . . . . . . . . . . Recycling Unit Hacks . | . . . . . . . . . . . . . . . . . Scanalyzer 2 | . . . . . . . 1 . . . . . . . 1 . Retrieve Study 2 | . . . . . . . 1 . . . . . . . 1 . Garrison Access Hacks 1 | . . . . . . . . . . . . 1 . . . . Seal Access 1 | . . . . . . . . . . . . 1 . . . . Unauthorized Hacks 6 | . . . . 1 . . 2 . . . . . . . 2 1 Terminals 6 | . . . . 1 . . 2 . . . . . . . 2 1 Assimilate 1 | . . . . . . . . . . . . . . . . 1 Botnet 5 | . . . . 1 . . 2 . . . . . . . 2 . Fabricators . | . . . . . . . . . . . . . . . . . Repair Stations . | . . . . . . . . . . . . . . . . . Recycling Units . | . . . . . . . . . . . . . . . . . Scanalyzers . | . . . . . . . . . . . . . . . . . Garrison Access . | . . . . . . . . . . . . . . . . . Data Cores Recovered . | . . . . . . . . . . . . . . . . . Used . | . . . . . . . . . . . . . . . . . Hacking Detections 15 | . 1 . . 2 . . 5 . . . . 1 . . 4 2 Full Trace Events 1 | . . . . . . . . . . . . . . . . 1 Feedback Events . | . . . . . . . . . . . . . . . . . Feedback Blocked . | . . . . . . . . . . . . . . . . . Robot Schematics Acquired . | . . . . . . . . . . . . . . . . . Robots Built . | . . . . . . . . . . . . . . . . . Authchips . | . . . . . . . . . . . . . . . . . Time . | . . . . . . . . . . . . . . . . . Total Robot Build Rating . | . . . . . . . . . . . . . . . . . Part Schematics Acquired 4 | . . . . . . . . . . 4 . . . . . . Parts Built 1 | . . . . . . . 1 . . . . . . . . . Authchips . | . . . . . . . . . . . . . . . . . Time 53 | . . . . . . . 53 . . . . . . . . . Total Part Build Rating 6 | . . . . . . . 6 . . . . . . . . . Part Studies Acquired 2 | . . . . . . . 1 . . . . . . . 1 . Parts Repaired . | . . . . . . . . . . . . . . . . . Time . | . . . . . . . . . . . . . . . . . Parts Recycled . | . . . . . . . . . . . . . . . . . Recycled Matter . | . . . . . . . . . . . . . . . . . Retrieved Matter . | . . . . . . . . . . . . . . . . . Retrieved Components . | . . . . . . . . . . . . . . . . . Parts Scanalyzed . | . . . . . . . . . . . . . . . . . Part Schematics Acquired . | . . . . . . . . . . . . . . . . . Parts Damaged . | . . . . . . . . . . . . . . . . . Bothacking | -11 -10 -10 -9 -6 -6 -6 -5 -5 -5 -5 -4 -4 -4 -4 -3 -2 ------------ Run | Yrd Mat Sub Scr Fac Low Low Fac Upp Upp Zhi Pro Fac Upp Upp Res Res Used RIF Installer . | . . . . . . . . . . . . . . . . . Robots Hacked . | . . . . . . . . . . . . . . . . . Non-combat . | . . . . . . . . . . . . . . . . . Combat . | . . . . . . . . . . . . . . . . . Robot Hacks Applied . | . . . . . . . . . . . . . . . . . Relay Couplers Released . | . . . . . . . . . . . . . . . . . Fabnet Peak Effective % . | . . . . . . . . . . . . . . . . . Robots Rewired 4 | . . . . . . 4 . . . . . . . . . . Allies Hacked 1 | . . . . . . 1 . . . . . . . . . . Hacks Repelled . | . . . . . . . . . . . . . . . . . Allies | -11 -10 -10 -9 -6 -6 -6 -5 -5 -5 -5 -4 -4 -4 -4 -3 -2 -------- Run | Yrd Mat Sub Scr Fac Low Low Fac Upp Upp Zhi Pro Fac Upp Upp Res Res Total Allies 4 | . . . . . . 4 . . . . . . . . . . Largest Group 4 | . . . . . . 4 . . . . . . . . . . Highest-Rated Group 116 | . . . . . . 116 . . . . . . . . . . Highest-Rated Ally 29 | . . . . . . 29 . . . . . . . . . . Initial UFD Resources 36 | . . . . 23 23 23 26 26 26 26 30 30 30 30 33 36 Total Orders 1 | . . . . . . 1 . . . . . . . . . . GUARD 1 | . . . . . . 1 . . . . . . . . . . Ally Attacks 32 | . . . . . . 32 . . . . . . . . . . Total Damage 325 | . . . . . . 325 . . . . . . . . . . Kills 8 | . . . . . . 8 . . . . . . . . . . Allies Corrupted . | . . . . . . . . . . . . . . . . . Allies Melted . | . . . . . . . . . . . . . . . . . Intel | -11 -10 -10 -9 -6 -6 -6 -5 -5 -5 -5 -4 -4 -4 -4 -3 -2 ------- Run | Yrd Mat Sub Scr Fac Low Low Fac Upp Upp Zhi Pro Fac Upp Upp Res Res Active Infowar (turns) 4641 | 39 192 514 . 159 . . 183 536 736 77 300 568 239 192 641 265 Optics 3641 | . . . . . . . 87 536 736 77 300 568 239 192 641 265 Sensors 3400 | . . . . . . . 120 536 736 77 300 568 239 192 524 108 IFF 212 | . . . . . . . . . . . . . . . 212 . Terrain 2991 | . . . . . . . 161 536 736 77 300 568 239 190 47 137 Structural 3395 | . . . . . . . 126 536 736 77 300 568 239 192 621 . Seismic 2618 | 39 192 514 . . . . 183 536 736 72 300 46 . . . . Decoding 55 | . . . . . . . . . . . . . . . . 55 Cloaking 171 | . . . . 90 . . . . . . . . . . 81 . Jamming 69 | . . . . 69 . . . . . . . . . . . . ECM 1130 | . . . . . . . . . . . . . 180 192 631 127 Robot Analysis Total 6 | . 2 . . . . . . . . 4 . . . . . . Derelict Logs Recovered 12 | . . 1 5 . 1 1 . 1 1 . 1 . 1 . . . Drone Launches . | . . . . . . . . . . . . . . . . . Drone Recoveries . | . . . . . . . . . . . . . . . . . Exploration | -11 -10 -10 -9 -6 -6 -6 -5 -5 -5 -5 -4 -4 -4 -4 -3 -2 ------------- Run | Yrd Mat Sub Scr Fac Low Low Fac Upp Upp Zhi Pro Fac Upp Upp Res Res Turns Passed 8802 | 119 192 1183 1092 1174 416 604 468 536 736 77 300 568 239 192 641 265 Spaces Moved 11359 | 77 149 875 976 625 408 1231 809 747 802 159 405 1031 629 444 1480 512 Core 499 | 3 . . . 91 403 2 . . . . . . . . . . Treads . | . . . . . . . . . . . . . . . . . Legs . | . . . . . . . . . . . . . . . . . Wheels 2608 | 74 149 875 976 534 . . . . . . . . . . . . Hover 57 | . . . . . . 57 . . . . . . . . . . Flight 8195 | . . . . . 5 1172 809 747 802 159 405 1031 629 444 1480 512 Fastest Speed 27 | 50 80 95 100 80 40 27 27 37 37 37 37 31 31 31 31 32 Average Speed 54 | 78 85 101 109 150 52 39 32 37 37 37 37 31 31 31 33 39 Slowest Speed 650 | 80 95 125 135 650 400 114 37 37 37 37 37 37 31 31 39 117 Overloaded Moves . | . . . . . . . . . . . . . . . . . Propulsion Burnouts . | . . . . . . . . . . . . . . . . . Robots Hopped 26 | . . . . . . . . . . . . 3 . . 7 16 Potential Cave-ins 2 | . . . . . . . 2 . . . . . . . . . Cave-ins Triggered 1 | . . . . . . . 1 . . . . . . . . . Teleports 1 | . . . . . . . . . . . . . . . 1 . Exploration Rate (%) 47 | 4 29 52 79 12 61 76 15 92 67 61 53 22 70 53 45 18 Regions Visited 16 Branch Regions 10 Pre-discovered Areas 8 | . . 1 2 . . . . . . 3 1 . 1 . . . Known Exits Taken 11 | . . . . . 1 1 1 1 1 1 1 1 1 1 1 . Unknown Exits Taken 5 | 1 1 1 1 1 . . . . . . . . . . . . Scrap Searched 21 | . . 4 4 . 2 2 . 3 1 . 1 . 2 2 . . Spaces Dug 82 | . . 19 . . . . 30 4 9 . . 18 1 1 . . Terrain Destroyed 254 | . . 121 . 70 . . 30 4 9 . . 18 1 1 . . Melee 63 | . . . . . . . 30 4 9 . . 18 1 1 . . Projectile . | . . . . . . . . . . . . . . . . . AOE 191 | . . 121 . 70 . . . . . . . . . . . . Terrain Rammed . | . . . . . . . . . . . . . . . . . Walls Destroyed . | . . . . . . . . . . . . . . . . . Machines Disabled . | . . . . . . . . . . . . . . . . . Actions | -11 -10 -10 -9 -6 -6 -6 -5 -5 -5 -5 -4 -4 -4 -4 -3 -2 --------- Run | Yrd Mat Sub Scr Fac Low Low Fac Upp Upp Zhi Pro Fac Upp Upp Res Res Total 13579 | 111 203 1067 1006 810 599 1342 928 995 1222 177 554 1233 658 496 1624 554 Wait 1767 | 11 45 117 4 130 186 62 37 243 412 . 150 147 17 50 122 34 Move 11293 | 76 148 874 975 624 407 1230 808 746 801 158 404 1024 628 443 1465 482 Hop 24 | . . . . . . . . . . . . 3 . . 7 14 Pick Up 50 | 6 2 13 9 8 . . 2 . . 2 . 2 2 . 2 2 Fast Attach 60 | 7 . 1 2 4 2 6 8 1 . 6 . 2 . . 11 10 Attach 30 | . . 5 1 5 1 2 4 . . . . 2 1 . 4 5 Detach 20 | . . 1 . 2 . 3 3 . . 1 . 1 1 . 3 5 Swap 36 | . 1 12 3 1 . 4 7 . . 3 . 3 1 1 . . Drop 51 | . 1 4 11 8 . 3 4 . . 7 . 4 1 1 7 . Fire 86 | 11 6 40 . 26 1 . . . . . . . . . . 2 Melee 82 | . . . . . . 1 40 5 9 . . 19 7 1 . . Ram 4 | . . . . 2 2 . . . . . . . . . . . Kick . | . . . . . . . . . . . . . . . . . Crush . | . . . . . . . . . . . . . . . . . Escape Stasis 44 | . . . . . . . 15 . . . . 26 . . 3 . Rewire 32 | . . . 1 . . 31 . . . . . . . . . . Trap . | . . . . . . . . . . . . . . . . . Miscellaneous . | . . . . . . . . . . . . . . . . . Route ------- -11/Scrapyard -10/Materials (discovered 2 exits: [*Min] / *Sub) -10/Subcaves -9/Scraptown -6/Factory -6/Lower Caves -6/Lower Caves -5/Factory (discovered 2 exits: *Fac / *Upp) -5/Upper Caves -5/Upper Caves (discovered 2 exits: *Fac / *Zhi) -5/Zhirov -4/Proximity Caves -4/Factory -4/Upper Caves -4/Upper Caves -3/Research -2/Research History --------- Turn | Location | Event 23 | -11/Scrapyard | Discovered new exit (range 16) 120 | -11/Scrapyard | Entered Materials 121 | -10/Materials | Met a group of wandering Federalists 200 | -10/Materials | Discovered new exit (range 8) 263 | -10/Materials | Discovered new exit (range 8) 303 | -10/Materials | Build established: Mutant 312 | -10/Materials | Entered Subcaves 312 | -10/Subcaves | Accompanied by 4 allies 313 | -10/Subcaves | Continued accompanying wandering Federalists (5) 547 | -10/Subcaves | Visited Clippyterm 549 | -10/Subcaves | Learned Factory trap positions 579 | -10/Subcaves | Wandering Federalist uncovered a shortcut to Scraptown 695 | -10/Subcaves | Shifting Twisted Machinery released Sub. Shrapnel Launcher 701 | -10/Subcaves | Shifting Twisted Machinery released Battle Rifle 857 | -10/Subcaves | Lost 3 parts (1p1n1u) 1008 | -10/Subcaves | Ambushed by Subdweller buried in earth 1273 | -10/Subcaves | Learned location of Zion (-7) 1328 | -10/Subcaves | Core integrity fell below 50% 1382 | -10/Subcaves | Lost 3 parts (1n2w) 1458 | -10/Subcaves | Core integrity fell below 20% 1495 | -10/Subcaves | Entered Scraptown 1682 | -9/Scraptown | Scanned Subdweller tech in exchange for log data 1685 | -9/Scraptown | Learned location of 1 exit from Proximity Caves 1687 | -9/Scraptown | Learned 12 Factory zone layouts 1688 | -9/Scraptown | Learned location of Extension (-5) 1689 | -9/Scraptown | Learned location of Testing (-2) 1690 | -9/Scraptown | Learned Factory interactive machine intel 2020 | -9/Scraptown | Visited Comm Corps 2030 | -9/Scraptown | Visited CR-KLE's Repair Center 2046 | -9/Scraptown | Visited Awakened 2061 | -9/Scraptown | Visited Spacefarers 2074 | -9/Scraptown | Visited Artisan Demo Area 2120 | -9/Scraptown | Visited Fellowship of the Rings 2126 | -9/Scraptown | Visited The Evicted 2157 | -9/Scraptown | Visited UFD Registry 2157 | -9/Scraptown | Registered with UFD as "Deathbrain" 2181 | -9/Scraptown | Visited LU-1G1's Boring Crew 2228 | -9/Scraptown | Visited Abandonware Association 2250 | -9/Scraptown | Learned abandonware demo "REPAIR.EXE" 2276 | -9/Scraptown | Visited Scrapoid Research Area 2356 | -9/Scraptown | Visited DA-N13 Charitable Foundation 2362 | -9/Scraptown | Found DCF Scrap (26 items) 2421 | -9/Scraptown | Visited Derelict Rescue Squad 2430 | -9/Scraptown | Visited Sword Containment 2456 | -9/Scraptown | Visited Research Penetration Think Tank 2503 | -9/Scraptown | Visited Science Guys 2581 | -9/Scraptown | Discovered new exit (range 5) 2587 | -9/Scraptown | Entered Factory 2587 | -6/Factory | Evolved 8 slots: Power x1, Propulsion x2, Utility x5 2589 | -6/Factory | Loaded intel: 107 trap records 2590 | -6/Factory | Loaded intel: 54 interactive machine locations 2672 | -6/Factory | Build established: Derelict-Mutant 3191 | -6/Factory | Destroyed 8 combat bots 3220 | -6/Factory | Lost 8 parts (2p2n1u3w) 3454 | -6/Factory | Build established: Mutant 3693 | -6/Factory | Discovered new exit (range 14) 3761 | -6/Factory | Entered Lower Caves 3778 | -6/Lower Caves | Core integrity fell below 50% 3785 | -6/Lower Caves | Released all parts (1) 3794 | -6/Lower Caves | Attracted the attention of an 0b10 outpost 4110 | -6/Lower Caves | Attracted the attention of an 0b10 checkpoint 4122 | -6/Lower Caves | Learned Factory garrison access intel 4158 | -6/Lower Caves | Discovered new exit (range 14) 4176 | -6/Lower Caves | Identified exit to Lower Caves 4177 | -6/Lower Caves | Entered another Lower Caves area 4178 | -6/Lower Caves | Learned location of 1 exit from Proximity Caves 4188 | -6/Lower Caves | Discovered new exit (range 7) 4191 | -6/Lower Caves | Identified exit to Factory 4271 | -6/Lower Caves | Attacked by a delusional Derelict stockpiling Unaware 4722 | -6/Lower Caves | Core integrity fell below 20% 4781 | -6/Lower Caves | Entered Factory 4781 | -5/Factory | Evolved 2 slots: Utility x2 4782 | -5/Factory | Loaded intel: 4 garrison access locations 4838 | -5/Factory | Discovered new exit (range 4) 4839 | -5/Factory | Identified exit to Upper Caves 4986 | -5/Factory | Central database locked down 5002 | -5/Factory | Crushed by falling debris 5033 | -5/Factory | Lost 3 parts (3n) 5112 | -5/Factory | Fabricated Nuclear Pulse Array (x1) 5115 | -5/Factory | Discovered new exit (range 8) 5117 | -5/Factory | Identified exit to Factory 5249 | -5/Factory | Entered Upper Caves 5316 | -5/Upper Caves | Learned 8 Factory zone layouts 5347 | -5/Upper Caves | Encountered a Warlord checkpoint 5473 | -5/Upper Caves | Acquired the password to a Derelict Tinkerer's latest research 5573 | -5/Upper Caves | Build established: Hacker-Scout 5782 | -5/Upper Caves | Discovered new exit (range 8) 5785 | -5/Upper Caves | Identified exit to Upper Caves 5785 | -5/Upper Caves | Entered another Upper Caves area 5810 | -5/Upper Caves | Discovered exit to Factory (range 18) 5868 | -5/Upper Caves | Learned Factory machine intel 6519 | -5/Upper Caves | Discovered new exit (range 5) 6521 | -5/Upper Caves | Identified exit to Zhirov 6521 | -5/Upper Caves | Entered Zhirov 6521 | -5/Zhirov | Discovered new exit (range 3) 6528 | -5/Zhirov | Met Zhirov 6536 | -5/Zhirov | Learned location of Quarantine (-3) 6536 | -5/Zhirov | Learned location of Command (-1) 6539 | -5/Zhirov | Zhirov requested help retrieving the SGEMP Prototype 6546 | -5/Zhirov | Found Alien Artifact 6546 | -5/Zhirov | Identified Integrated Dissipator 6546 | -5/Zhirov | Installed Integrated Dissipator, increased core heat dissipation (+20) 6554 | -5/Zhirov | Found Alien Artifact 6598 | -5/Zhirov | Identified exit to Proximity Caves 6598 | -5/Zhirov | Entered Proximity Caves 6897 | -4/Proximity Caves | Learned location of Armory (-4) 6898 | -4/Proximity Caves | Entered Factory 6898 | -4/Factory | Evolved 2 slots: Propulsion x2 6900 | -4/Factory | Loaded intel: 283 machine locations 6939 | -4/Factory | Discovered new exit (range 22) 6953 | -4/Factory | Identified exit to Upper Caves 7466 | -4/Factory | Entered Upper Caves 7702 | -4/Upper Caves | Discovered new exit (range 10) 7704 | -4/Upper Caves | Identified exit to Upper Caves 7705 | -4/Upper Caves | Entered another Upper Caves area 7793 | -4/Upper Caves | Spotted B-86 Titan 7827 | -4/Upper Caves | Build established: Hacker-Ninja 7840 | -4/Upper Caves | Discovered new exit (range 20) 7897 | -4/Upper Caves | Identified exit to Research 7897 | -4/Upper Caves | Entered Research 7897 | -3/Research | Evolved 2 slots: Power x1, Utility x1 8108 | -3/Research | Identified Transdimensional Reconstructor 8108 | -3/Research | Warped through subspace 8199 | -3/Research | Build established: Hacker-Scout 8315 | -3/Research | Found Prototype Device 8315 | -3/Research | Identified Exp. Thermal Shield 8386 | -3/Research | Spotted B-86 Titan 8421 | -3/Research | Spotted B-86 Titan 8439 | -3/Research | Spotted B-86 Titan 8478 | -3/Research | Lost 3 parts (3u) 8524 | -3/Research | Discovered new exit (range 14) 8538 | -3/Research | Identified exit to Research 8538 | -3/Research | Entered another Research area 8538 | -2/Research | Evolved 2 slots: Utility x2 8567 | -2/Research | Lost 6 parts (3p1n2u) 8803 | -2/Research | Self-destructed Last Messages --------------- 08771_ C-30 ARC bursts open, deploying its payload. 08771_ L-61 Swordsman unfolds itself. 08771_ G-73 Enforcer unfolds itself. 08771_ Acquired 100 matter. 08776_ Slug penetrates Wall. 08777_ Impulse Thruster Array destroyed. 08779_ Slug penetrates Wall. 08780_ Lgt. Quantum Reactor destroyed. 08782_ Adv. Sensor Array destroyed. 08784_ Field Propulsion Drive+ destroyed. 08784_ Acquired Lgt. Quantum Reactor. 08785_ Lgt. Quantum Reactor destroyed. 08788_ ALERT: Potential suspicious activity detected, Programmers report to Research Zone 3J. 08791_ W-44 Eye sends out distress signal. 08797_ Triggered Blade Trap. 08797_ Massive razor-sharp blades shoot up from within the floor. 08797_ Field Propulsion Drive+ severed. 08798_ Acquired Field Propulsion Drive+. 08799_ Impulse Thruster Array destroyed. Map ----- +----------------------------------------------------+ | ????????????????#??#???????# ""S"" + | | ???????????????????#??????## "" "" # | | ??????????????????????????#? # | | ?????????????????????????????? # | | ????????????????###????##???? ? # | | ??????????????#????????????#?#?###+### | | ???????????#??????#??#????#????# | | ????????????????#??##?#??#??#??# | | ????????????????#??????????#?#?# | | ??????????????#?#?#?#???#####??# | | ??????????#?##?# ??? ???+ #??# | | ??????????##?#?#?? ??? # #??# | | ??????#??????#??"?" ??? # #### | | ?#???????????#??"?? ? ? # | | ?#?????????????#????????# | | ???????#??#??##??"?? ? ?# | | ??#?????????#???"???????# | | ?????????????????? ? ?? # | | ????#??????????#?? ?? # ######## | | ?????????#######?#+##+### #?????? | | ?????#???# #?## #??????? | | ??????#?## ! #### # ?????? | | ?????????# #??# + ??? | | ?????#???# #### # | | ??????#??# + # | | ??#??????# @# ####"######### """ | | #?#?????## # # #????? """ | | ???#???#?# + / #??#???""" | | #???#????#= #### """ #??##?? | | ?????????######?## """ #????? ? ? | | ????????????#????# """ #???#????#?? | | ???#???#???#?????# ##????#????? | | #??#??????#???##?# #?????#??#?? | | #???????????#?#??# #?#????????? | | ?????????????????# #???###????? | | ????????????????############???#?????? | | ????#?#????#????#??#???? ?????##?????? | | ?##????????????????? ???????????#??#?? | | ????????????#???????"????????#??#????? | | ?????????????????????????????????????? | | ?????????#???#?????#??????????? ?????? | | ?##???#??#????????#??????????????????? | | ???????????#????#?##???? ???????????? | | ??#????????????#?#??????????#????????? | | ????????????#???#???? ???????????????? | | ????????#???????#????????????????????? | | ???????????#????#????????????????????? | | ?????????????????????????????????????? | | ?????????????????????????????????????? | | ?????????????????????????????????????? | +----------------------------------------------------+ Best States ------------- Heat Dissipation 69 Energy Generation 45 Energy Capacity 725 Matter Stores 300 Matter Capacity 300 Sight Range 22 Robot Scan Range 16 Terrain Scan Range 20 Terrain Scan Density 210 ECM Strength 2 Jamming Range 12 Cloak Strength 2 Armor Coverage 150 Evasion (%) 64 Offensive Hacking 12 Defensive Hacking 34 Item Schematics ----------------- Assault Drone Bay | -5/Zhirov | Free Exp. Heat Sink | -5/Zhirov | Free Exp. Optical Array | -5/Zhirov | Free Imp. Arc Thrower | -5/Zhirov | Free Robot Schematics ------------------ None Fabricated ------------ Nuclear Pulse Array | x1 | -5/Factory | Preloaded Repaired ---------- Nothing Studied --------- Field Propulsion Drive | -5/Factory | Hacked Antimatter Reactor | -3/Research | Hacked Alien Tech Used ----------------- Integrated Dissipator Transdimensional Reconstructor Achievements -------------- None Challenges ------------ None Game ------ Seed NovaMetaPower Manual? 0 Play Time 01:26:17 Cumulative 94.4 hours Start 2026.02.20 @ 00:10:48 End 2026.02.20 @ 01:36:33 Sessions 1 Manual Loads 0 Difficulty Rogue Special Mode None Game No. 194 Rogue 194 Adventurer 0 Explorer 0 Win Type - Total 2 Types 1/0/0/1/0/0/0/0/0/0 Lore% 52 Gallery% 39 Achievement% 39 Wizard Run 0 Options --------- Layout 0 ASCII 0 Keyboard 1 Movement Arrows Keybinds 0 Fullscreen 1 Font 18/Smallcaps Map View 76x50 Zoom Use 15% Tactical HUD 1 Map Filters NONE Filters NONE Steam 1 RUN: 5f23e07b-cd26-4c0c-ae70-832e3836b697